[Event "*** Titled Tuesday Blitz"]
[Site "Chess.com"]
[Date "2021.04.06"]
[Round "6"]
[White "Pantata007"]
[Black "morte-negra"]
[Result "1-0"]
[WhiteElo "2252"]
[BlackElo "1946"]
[TimeControl "180+1"]
[EndTime "11:06:41 PDT"]
[Termination "Pantata007 won by resignation"]

1. d4 {[%clk 0:02:58.1]} 1... Nf6 {[%clk 0:02:59]} 2. c4 {[%clk 0:02:57.9]} 2...
c5 {[%clk 0:02:59.3]} 3. d5 {[%clk 0:02:57.7]} 3... e6 {[%clk 0:02:59.7]} 4. Nc3
{[%clk 0:02:57.6]} 4... exd5 {[%clk 0:02:59.8]} 5. cxd5 {[%clk 0:02:58.5]} 5...
d6 {[%clk 0:02:59.9]} 6. e4 {[%clk 0:02:59]} 6... g6 {[%clk 0:02:59.8]} 7. f4
{[%clk 0:02:59.5]} 7... Bg7 {[%clk 0:02:59.5]} 8. Bb5+ {[%clk 0:02:59.9]} 8...
Nfd7 {[%clk 0:02:58.8]} 9. Nf3 {[%clk 0:03:00.4]} 9... a6 {[%clk 0:02:58.2]} 10.
Bd3 {[%clk 0:03:00.1]} 10... O-O {[%clk 0:02:57.1]} 11. O-O {[%clk 0:03:00.4]}
11... Re8 {[%clk 0:02:56.3]} 12. a4 {[%clk 0:02:48.9]} 12... Nf6 {[%clk
0:02:56]} 13. Kh1 {[%clk 0:02:24.3]} 13... Bg4 {[%clk 0:02:53.2]} 14. h3 {[%clk
0:02:20.5]} 14... Bxf3 {[%clk 0:02:51.1]} 15. Qxf3 {[%clk 0:02:21.4]} 15... Nbd7
{[%clk 0:02:50.8]} 16. Bd2 {[%clk 0:02:19.7]} 16... Rb8 {[%clk 0:02:47.5]} 17.
a5 {[%clk 0:02:15.4]} 17... Qc7 {[%clk 0:02:47.1]} 18. Rfc1 {[%clk 0:02:05.1]}
18... b5 {[%clk 0:02:30.3]} 19. axb6 {[%clk 0:02:02]} 19... Rxb6 {[%clk
0:02:30.2]} 20. Na4 {[%clk 0:01:58.9]} 20... Rb4 {[%clk 0:02:25]} 21. Bxb4
{[%clk 0:01:58.2]} 21... Qb7 {[%clk 0:01:52.4]} 22. Bc3 {[%clk 0:01:55.7]} 22...
Nh5 {[%clk 0:01:37.7]} 23. Bxg7 {[%clk 0:01:39.4]} 23... Nxg7 {[%clk 0:01:36.6]}
24. Bc4 {[%clk 0:01:20.4]} 24... f5 {[%clk 0:01:29.8]} 25. exf5 {[%clk 0:01:15]}
25... Nxf5 {[%clk 0:01:28.8]} 26. Re1 {[%clk 0:01:13.1]} 26... Rf8 {[%clk
0:01:15.9]} 27. Kh2 {[%clk 0:01:06.9]} 27... Qb4 {[%clk 0:01:12.5]} 28. b3
{[%clk 0:01:03.6]} 28... Nd4 {[%clk 0:01:07]} 29. Qc3 {[%clk 0:00:55.3]} 29...
Qb7 {[%clk 0:01:03.5]} 30. Re7 {[%clk 0:00:44.3]} 30... Nf6 {[%clk 0:01:01]} 31.
Rxb7 {[%clk 0:00:42.9]} 1-0

[Event "*** Titled Tuesday Blitz"]
[Site "Chess.com"]
[Date "2021.04.06"]
[Round "6"]
[White "2nd_life"]
[Black "Goryachkina"]
[Result "0-1"]
[WhiteElo "2414"]
[BlackElo "2624"]
[TimeControl "180+1"]
[EndTime "11:06:43 PDT"]
[Termination "Goryachkina won on time"]

1. e4 {[%clk 0:03:00.9]} 1... c5 {[%clk 0:02:59.8]} 2. Nf3 {[%clk 0:03:00.6]}
2... e6 {[%clk 0:02:59.9]} 3. c3 {[%clk 0:03:00.2]} 3... d5 {[%clk 0:02:56.2]}
4. exd5 {[%clk 0:03:00.3]} 4... exd5 {[%clk 0:02:54.7]} 5. d4 {[%clk 0:03:01.2]}
5... Nf6 {[%clk 0:02:53.3]} 6. Be3 {[%clk 0:03:01.3]} 6... c4 {[%clk 0:02:48.9]}
7. b3 {[%clk 0:03:01.2]} 7... cxb3 {[%clk 0:02:48.2]} 8. axb3 {[%clk 0:03:02.1]}
8... Nc6 {[%clk 0:02:48.2]} 9. Bd3 {[%clk 0:03:01.7]} 9... Bd6 {[%clk
0:02:48.2]} 10. h3 {[%clk 0:02:55.3]} 10... O-O {[%clk 0:02:46.3]} 11. O-O
{[%clk 0:02:54.2]} 11... Re8 {[%clk 0:02:45.9]} 12. Re1 {[%clk 0:02:52.8]} 12...
Ne4 {[%clk 0:02:43.7]} 13. c4 {[%clk 0:02:47.6]} 13... Nb4 {[%clk 0:02:34.5]}
14. Bf1 {[%clk 0:02:20.3]} 14... Bf5 {[%clk 0:02:27.4]} 15. g4 {[%clk 0:01:37]}
15... Bg6 {[%clk 0:02:25.4]} 16. Ne5 {[%clk 0:01:36.8]} 16... Qh4 {[%clk
0:01:58]} 17. Nxg6 {[%clk 0:01:27.5]} 17... hxg6 {[%clk 0:01:57.6]} 18. Bg2
{[%clk 0:01:22.4]} 18... f5 {[%clk 0:01:56.3]} 19. Rf1 {[%clk 0:00:16.7]} 19...
f4 {[%clk 0:01:23.7]} 20. Bc1 {[%clk 0:00:15.3]} 20... Ng5 {[%clk 0:01:20.4]}
21. c5 {[%clk 0:00:09.4]} 21... Nxh3+ {[%clk 0:01:11.4]} 0-1

[Event "*** Titled Tuesday Blitz"]
[Site "Chess.com"]
[Date "2021.04.06"]
[Round "6"]
[White "Romadk"]
[Black "Alex_Molchanov"]
[Result "1-0"]
[WhiteElo "2356"]
[BlackElo "2482"]
[TimeControl "180+1"]
[EndTime "11:06:43 PDT"]
[Termination "Romadk won by resignation"]

1. d4 {[%clk 0:03:00.9]} 1... Nf6 {[%clk 0:02:58.8]} 2. Nf3 {[%clk 0:02:59.9]}
2... g6 {[%clk 0:02:59.1]} 3. c4 {[%clk 0:02:58.8]} 3... Bg7 {[%clk 0:02:59.3]}
4. Nc3 {[%clk 0:02:59.3]} 4... d6 {[%clk 0:02:59.7]} 5. Bg5 {[%clk 0:02:59.6]}
5... O-O {[%clk 0:02:59.6]} 6. e3 {[%clk 0:03:00.1]} 6... Nbd7 {[%clk
0:03:00.1]} 7. Be2 {[%clk 0:03:00.5]} 7... b6 {[%clk 0:02:58.8]} 8. Qc2 {[%clk
0:02:59.4]} 8... Bb7 {[%clk 0:02:58.6]} 9. O-O {[%clk 0:02:59.9]} 9... c5 {[%clk
0:02:55.2]} 10. Rfe1 {[%clk 0:02:58.9]} 10... Rc8 {[%clk 0:02:48.9]} 11. Qa4
{[%clk 0:02:55]} 11... a6 {[%clk 0:02:45.2]} 12. d5 {[%clk 0:02:40.7]} 12... b5
{[%clk 0:02:40]} 13. cxb5 {[%clk 0:02:36.7]} 13... Nb6 {[%clk 0:02:40]} 14. Qh4
{[%clk 0:02:15]} 14... axb5 {[%clk 0:02:35.1]} 15. Bxb5 {[%clk 0:02:15.7]} 15...
Nbxd5 {[%clk 0:02:28.6]} 16. Nxd5 {[%clk 0:02:06.2]} 16... Bxd5 {[%clk 0:02:25]}
17. e4 {[%clk 0:01:57.1]} 17... Ba8 {[%clk 0:02:16.8]} 18. e5 {[%clk 0:01:55.5]}
18... dxe5 {[%clk 0:02:15.5]} 19. Nxe5 {[%clk 0:01:54.7]} 19... Qd5 {[%clk
0:01:53.1]} 20. Nf3 {[%clk 0:01:44.8]} 20... Qf5 {[%clk 0:01:33.3]} 21. Re5
{[%clk 0:01:26.3]} 21... Qc2 {[%clk 0:01:32.7]} 22. Rxe7 {[%clk 0:01:25.2]}
22... Qxb2 {[%clk 0:01:21.4]} 23. Rae1 {[%clk 0:01:19.4]} 23... Nd5 {[%clk
0:01:17.7]} 24. Bc4 {[%clk 0:01:03.5]} 24... h6 {[%clk 0:01:06.6]} 25. Bxd5
{[%clk 0:00:56.6]} 25... hxg5 {[%clk 0:01:05.2]} 26. Nxg5 {[%clk 0:00:57.5]}
26... Bh6 {[%clk 0:00:46.6]} 27. Qxh6 {[%clk 0:00:57]} 27... Qg7 {[%clk
0:00:47.2]} 28. Qxg7+ {[%clk 0:00:53.5]} 28... Kxg7 {[%clk 0:00:44]} 29. Bxa8
{[%clk 0:00:53.2]} 29... Rxa8 {[%clk 0:00:44.9]} 30. Ne6+ {[%clk 0:00:52.9]} 1-0

[Event "*** Titled Tuesday Blitz"]
[Site "Chess.com"]
[Date "2021.04.06"]
[Round "6"]
[White "Nachsueb"]
[Black "ega2006"]
[Result "0-1"]
[WhiteElo "2201"]
[BlackElo "2401"]
[TimeControl "180+1"]
[EndTime "11:06:45 PDT"]
[Termination "ega2006 won by resignation"]

1. d4 {[%clk 0:03:00.9]} 1... Nf6 {[%clk 0:02:59.5]} 2. c4 {[%clk 0:03:01.4]}
2... g6 {[%clk 0:02:59.5]} 3. Nc3 {[%clk 0:03:01.9]} 3... Bg7 {[%clk 0:02:59.1]}
4. e4 {[%clk 0:03:02.5]} 4... d6 {[%clk 0:03:00]} 5. Be2 {[%clk 0:03:02.8]} 5...
O-O {[%clk 0:02:58.6]} 6. Nf3 {[%clk 0:03:03.3]} 6... e5 {[%clk 0:02:57.8]} 7.
O-O {[%clk 0:03:03.3]} 7... Nbd7 {[%clk 0:02:57.4]} 8. dxe5 {[%clk 0:03:03]}
8... dxe5 {[%clk 0:02:57.4]} 9. Qc2 {[%clk 0:03:02.4]} 9... c6 {[%clk
0:02:57.7]} 10. h3 {[%clk 0:03:02.7]} 10... Re8 {[%clk 0:02:56.3]} 11. Rd1
{[%clk 0:03:03.2]} 11... Qe7 {[%clk 0:02:53.3]} 12. Be3 {[%clk 0:03:03]} 12...
Nh5 {[%clk 0:02:52.9]} 13. b4 {[%clk 0:02:50]} 13... Qxb4 {[%clk 0:02:45]} 14.
Rab1 {[%clk 0:02:40.5]} 14... Qe7 {[%clk 0:02:44.1]} 15. Na4 {[%clk 0:02:34.6]}
15... Nf4 {[%clk 0:02:41.8]} 16. Bf1 {[%clk 0:02:34.2]} 16... Ne6 {[%clk
0:02:40.8]} 17. c5 {[%clk 0:02:23.9]} 17... Nd4 {[%clk 0:02:34.6]} 18. Nxd4
{[%clk 0:02:04.7]} 18... exd4 {[%clk 0:02:35.5]} 19. Bxd4 {[%clk 0:02:05]} 19...
Qxe4 {[%clk 0:02:35.4]} 20. Qxe4 {[%clk 0:01:37.8]} 20... Rxe4 {[%clk
0:02:36.3]} 21. Bxg7 {[%clk 0:01:38.7]} 21... Kxg7 {[%clk 0:02:35.7]} 22. Nc3
{[%clk 0:01:39.2]} 22... Re8 {[%clk 0:02:29.4]} 23. Re1 {[%clk 0:01:17.4]} 23...
Rxe1 {[%clk 0:02:15]} 24. Rxe1 {[%clk 0:01:18.3]} 24... Nxc5 {[%clk 0:02:15.6]}
25. Re8 {[%clk 0:01:18.4]} 25... b6 {[%clk 0:02:15.6]} 26. Bc4 {[%clk
0:01:15.6]} 26... Bb7 {[%clk 0:02:12.8]} 27. Re7 {[%clk 0:01:15.4]} 27... Rf8
{[%clk 0:02:12.5]} 28. a4 {[%clk 0:01:14]} 28... Kf6 {[%clk 0:02:07.9]} 29. Rc7
{[%clk 0:01:11.7]} 29... Ke5 {[%clk 0:02:03.6]} 30. Rxf7 {[%clk 0:01:05.5]}
30... Rxf7 {[%clk 0:02:02.6]} 31. Bxf7 {[%clk 0:01:06.4]} 31... Kd4 {[%clk
0:01:53.5]} 32. Ne2+ {[%clk 0:01:05.2]} 32... Kd3 {[%clk 0:01:53.9]} 33. Nf4+
{[%clk 0:01:05.5]} 33... Ke4 {[%clk 0:01:54]} 34. Ne6 {[%clk 0:00:47.4]} 34...
Nxe6 {[%clk 0:01:53]} 35. Bxe6 {[%clk 0:00:48.3]} 35... b5 {[%clk 0:01:52.8]}
36. a5 {[%clk 0:00:41]} 36... c5 {[%clk 0:01:48.6]} 37. Kf1 {[%clk 0:00:41.2]}
37... Kd3 {[%clk 0:01:45.9]} 38. Ke1 {[%clk 0:00:40.5]} 38... Bxg2 {[%clk
0:01:45.6]} 39. Bd7 {[%clk 0:00:39.2]} 39... b4 {[%clk 0:01:44.7]} 40. h4 {[%clk
0:00:36.6]} 40... b3 {[%clk 0:01:42.6]} 41. Kd1 {[%clk 0:00:37.1]} 41... Bf3+
{[%clk 0:01:42.1]} 42. Kc1 {[%clk 0:00:37.4]} 42... Kc3 {[%clk 0:01:41.3]} 0-1

[Event "*** Titled Tuesday Blitz"]
[Site "Chess.com"]
[Date "2021.04.06"]
[Round "6"]
[White "IriBu"]
[Black "Forantes"]
[Result "1-0"]
[WhiteElo "2553"]
[BlackElo "2351"]
[TimeControl "180+1"]
[EndTime "11:06:49 PDT"]
[Termination "IriBu won by resignation"]

1. e4 {[%clk 0:03:00.9]} 1... c5 {[%clk 0:02:59.6]} 2. Be2 {[%clk 0:03:00.2]}
2... g6 {[%clk 0:02:58.2]} 3. f4 {[%clk 0:03:00.5]} 3... Bg7 {[%clk 0:02:57]} 4.
Nf3 {[%clk 0:03:01.1]} 4... d6 {[%clk 0:02:57.2]} 5. O-O {[%clk 0:03:01.6]} 5...
Nc6 {[%clk 0:02:57.5]} 6. c3 {[%clk 0:03:02.3]} 6... e5 {[%clk 0:02:54]} 7. fxe5
{[%clk 0:03:01.6]} 7... dxe5 {[%clk 0:02:53.8]} 8. Bb5 {[%clk 0:03:02.1]} 8...
Ne7 {[%clk 0:02:53.2]} 9. d3 {[%clk 0:03:01.6]} 9... O-O {[%clk 0:02:52.8]} 10.
Be3 {[%clk 0:03:01.7]} 10... b6 {[%clk 0:02:46.8]} 11. Qe2 {[%clk 0:02:59.2]}
11... Bb7 {[%clk 0:02:19.9]} 12. Nbd2 {[%clk 0:02:58.3]} 12... a6 {[%clk
0:01:58.3]} 13. Ba4 {[%clk 0:02:56.8]} 13... b5 {[%clk 0:01:58.7]} 14. Bc2
{[%clk 0:02:55.7]} 14... c4 {[%clk 0:00:59]} 15. dxc4 {[%clk 0:02:56.6]} 15...
Na5 {[%clk 0:00:58.2]} 16. c5 {[%clk 0:02:51.4]} 16... Rc8 {[%clk 0:00:52.5]}
17. b4 {[%clk 0:02:51.3]} 17... Nac6 {[%clk 0:00:52.2]} 18. a4 {[%clk
0:02:49.7]} 18... bxa4 {[%clk 0:00:49.5]} 19. Bxa4 {[%clk 0:02:48.1]} 19... f5
{[%clk 0:00:48.4]} 20. Bb3+ {[%clk 0:02:46]} 20... Kh8 {[%clk 0:00:45.6]} 21.
Ng5 {[%clk 0:02:46.2]} 21... f4 {[%clk 0:00:43.4]} 22. Bf2 {[%clk 0:02:45.9]}
22... Nd5 {[%clk 0:00:22.9]} 23. exd5 {[%clk 0:02:43]} 23... Qxg5 {[%clk
0:00:22.5]} 24. Ne4 {[%clk 0:02:35.9]} 24... Qf5 {[%clk 0:00:06.3]} 25. Nd6
{[%clk 0:02:11.9]} 25... Qg5 {[%clk 0:00:06.5]} 26. h4 {[%clk 0:02:10.8]} 26...
Qe7 {[%clk 0:00:03]} 27. Nxc8 {[%clk 0:02:05.6]} 27... Bxc8 {[%clk 0:00:03.6]}
28. dxc6 {[%clk 0:02:04.9]} 28... e4 {[%clk 0:00:03.7]} 29. Bd5 {[%clk
0:02:03.1]} 29... Bf5 {[%clk 0:00:02.1]} 30. Rxa6 {[%clk 0:01:56.4]} 30... f3
{[%clk 0:00:01.4]} 31. gxf3 {[%clk 0:01:54.7]} 31... Qf6 {[%clk 0:00:01.4]} 32.
fxe4 {[%clk 0:01:52.1]} 32... Bc8 {[%clk 0:00:02]} 33. Bg3 {[%clk 0:01:48.2]}
33... Qxf1+ {[%clk 0:00:01.4]} 34. Qxf1 {[%clk 0:01:48.5]} 34... Rxf1+ {[%clk
0:00:02.3]} 35. Kxf1 {[%clk 0:01:49]} 35... Bxa6+ {[%clk 0:00:03]} 36. c4 {[%clk
0:01:48.3]} 36... Bc3 {[%clk 0:00:03.9]} 37. b5 {[%clk 0:01:48]} 37... Bc8
{[%clk 0:00:03.6]} 38. b6 {[%clk 0:01:47.6]} 38... Bh3+ {[%clk 0:00:04]} 39. Ke2
{[%clk 0:01:46.7]} 39... Bd4 {[%clk 0:00:04.1]} 1-0

[Event "*** Titled Tuesday Blitz"]
[Site "Chess.com"]
[Date "2021.04.06"]
[Round "6"]
[White "McCarthyStone"]
[Black "tvjosue"]
[Result "0-1"]
[WhiteElo "2395"]
[BlackElo "2571"]
[TimeControl "180+1"]
[EndTime "11:06:51 PDT"]
[Termination "tvjosue won by resignation"]

1. Nf3 {[%clk 0:03:00.9]} 1... g6 {[%clk 0:02:43.6]} 2. c4 {[%clk 0:02:59.9]}
2... Bg7 {[%clk 0:02:44.5]} 3. Nc3 {[%clk 0:03:00.4]} 3... c5 {[%clk 0:02:45.2]}
4. g3 {[%clk 0:02:59.7]} 4... Nc6 {[%clk 0:02:46.1]} 5. Bg2 {[%clk 0:03:00]}
5... e6 {[%clk 0:02:47]} 6. O-O {[%clk 0:02:59.6]} 6... Nge7 {[%clk 0:02:47.9]}
7. e3 {[%clk 0:02:33.5]} 7... O-O {[%clk 0:02:48.8]} 8. d4 {[%clk 0:02:32.5]}
8... d6 {[%clk 0:02:49.7]} 9. b3 {[%clk 0:02:23.7]} 9... b6 {[%clk 0:02:48.1]}
10. Bb2 {[%clk 0:02:22.4]} 10... Bb7 {[%clk 0:02:47.6]} 11. Rc1 {[%clk
0:02:22.5]} 11... Rc8 {[%clk 0:02:47.5]} 12. Qd2 {[%clk 0:02:21]} 12... Qc7
{[%clk 0:02:46.8]} 13. Rfd1 {[%clk 0:02:20.3]} 13... Rfd8 {[%clk 0:02:46.4]} 14.
d5 {[%clk 0:02:13.6]} 14... exd5 {[%clk 0:02:45.8]} 15. Nxd5 {[%clk 0:02:14]}
15... Nxd5 {[%clk 0:02:45.4]} 16. Bxg7 {[%clk 0:01:59.7]} 16... Kxg7 {[%clk
0:02:45.2]} 17. cxd5 {[%clk 0:01:59.3]} 17... Nb4 {[%clk 0:02:41.6]} 18. Qb2+
{[%clk 0:01:57.1]} 18... Kg8 {[%clk 0:02:41.2]} 19. a3 {[%clk 0:01:54.9]} 19...
Nxd5 {[%clk 0:02:40.2]} 20. Ng5 {[%clk 0:01:53]} 20... Ne7 {[%clk 0:02:36]} 21.
Qf6 {[%clk 0:01:36]} 21... Nf5 {[%clk 0:02:34.2]} 22. e4 {[%clk 0:01:27.7]}
22... Qe7 {[%clk 0:02:27.6]} 23. Qxe7 {[%clk 0:00:56.8]} 23... Nxe7 {[%clk
0:02:28.5]} 24. Rc2 {[%clk 0:00:50.3]} 24... h6 {[%clk 0:02:19.6]} 25. Nh3
{[%clk 0:00:48.3]} 25... Nc6 {[%clk 0:02:18.7]} 26. Nf4 {[%clk 0:00:43.2]} 26...
Nd4 {[%clk 0:02:17.6]} 27. Rb2 {[%clk 0:00:43.9]} 27... Kf8 {[%clk 0:02:12.9]}
28. h4 {[%clk 0:00:43.8]} 28... Ke7 {[%clk 0:02:12.4]} 29. Kf1 {[%clk
0:00:44.3]} 29... Ba6+ {[%clk 0:02:11.4]} 30. Kg1 {[%clk 0:00:40.6]} 30... Bb7
{[%clk 0:02:12.3]} 31. Kf1 {[%clk 0:00:40.4]} 31... g5 {[%clk 0:02:12.3]} 32.
hxg5 {[%clk 0:00:40.4]} 32... hxg5 {[%clk 0:02:13.2]} 33. Nd3 {[%clk 0:00:40.7]}
33... Ba6 {[%clk 0:02:12.8]} 34. Kg1 {[%clk 0:00:40.3]} 34... Bxd3 {[%clk
0:02:13.7]} 35. Rxd3 {[%clk 0:00:40.1]} 35... g4 {[%clk 0:02:14]} 36. b4 {[%clk
0:00:37.9]} 36... Ke6 {[%clk 0:02:11.3]} 37. Rbd2 {[%clk 0:00:37.4]} 37... Ke5
{[%clk 0:02:11.1]} 38. f3 {[%clk 0:00:36.2]} 38... gxf3 {[%clk 0:02:10.4]} 39.
Bxf3 {[%clk 0:00:37.1]} 39... Rg8 {[%clk 0:02:09.3]} 40. Kf2 {[%clk 0:00:37.5]}
40... Rcf8 {[%clk 0:02:09.5]} 41. bxc5 {[%clk 0:00:35.9]} 41... dxc5 {[%clk
0:02:10.4]} 42. Rd1 {[%clk 0:00:32.7]} 42... Rh8 {[%clk 0:02:09.9]} 43. Rh1
{[%clk 0:00:31.5]} 43... Rxh1 {[%clk 0:02:07.4]} 44. Bxh1 {[%clk 0:00:32.4]}
44... Rh8 {[%clk 0:02:05.2]} 45. Bg2 {[%clk 0:00:30.8]} 45... f6 {[%clk
0:02:03.2]} 46. a4 {[%clk 0:00:30.1]} 46... Rd8 {[%clk 0:02:03]} 47. Bh3 {[%clk
0:00:26.5]} 47... Nc6 {[%clk 0:01:56.7]} 48. Rf3 {[%clk 0:00:21.1]} 48... Ne7
{[%clk 0:01:55.5]} 49. Bg2 {[%clk 0:00:19.5]} 49... Rd2+ {[%clk 0:01:55.2]} 50.
Ke3 {[%clk 0:00:19.8]} 50... Rxg2 {[%clk 0:01:54.1]} 0-1

[Event "*** Titled Tuesday Blitz"]
[Site "Chess.com"]
[Date "2021.04.06"]
[Round "6"]
[White "UCantHandleDenker"]
[Black "ukchessbomber"]
[Result "1-0"]
[WhiteElo "2601"]
[BlackElo "2483"]
[TimeControl "180+1"]
[EndTime "11:06:53 PDT"]
[Termination "UCantHandleDenker won by resignation"]

1. Nf3 {[%clk 0:03:00.9]} 1... g6 {[%clk 0:03:00.9]} 2. d3 {[%clk 0:03:00.1]}
2... Bg7 {[%clk 0:03:01.8]} 3. g3 {[%clk 0:02:57.9]} 3... d5 {[%clk 0:03:02.3]}
4. Bg2 {[%clk 0:02:58]} 4... c5 {[%clk 0:03:02.9]} 5. O-O {[%clk 0:02:58.3]}
5... Nc6 {[%clk 0:03:03.8]} 6. Nbd2 {[%clk 0:02:57.1]} 6... e5 {[%clk
0:03:03.7]} 7. e4 {[%clk 0:02:57.6]} 7... Nf6 {[%clk 0:03:04.1]} 8. exd5 {[%clk
0:02:57.4]} 8... Nxd5 {[%clk 0:03:05]} 9. Re1 {[%clk 0:02:56.9]} 9... O-O {[%clk
0:03:05.5]} 10. a3 {[%clk 0:02:54.2]} 10... f6 {[%clk 0:03:02.4]} 11. Rb1 {[%clk
0:02:52.6]} 11... Be6 {[%clk 0:03:01.3]} 12. h4 {[%clk 0:02:51.4]} 12... Bf7
{[%clk 0:02:58.1]} 13. Ne4 {[%clk 0:02:49.2]} 13... b6 {[%clk 0:02:56.7]} 14. c4
{[%clk 0:02:49.1]} 14... Nc7 {[%clk 0:02:48.2]} 15. b4 {[%clk 0:02:49.2]} 15...
cxb4 {[%clk 0:02:31]} 16. axb4 {[%clk 0:02:50.1]} 16... Qd7 {[%clk 0:02:31.4]}
17. b5 {[%clk 0:02:45.7]} 17... Na5 {[%clk 0:02:26.6]} 18. h5 {[%clk 0:02:19.4]}
18... Rad8 {[%clk 0:02:19.3]} 19. h6 {[%clk 0:02:17.5]} 19... Bh8 {[%clk
0:02:19.4]} 20. Ba3 {[%clk 0:02:17.2]} 20... Rfe8 {[%clk 0:02:05.5]} 21. Nd6
{[%clk 0:02:16.3]} 21... Re6 {[%clk 0:01:56.8]} 22. Bh3 {[%clk 0:02:09.3]} 22...
f5 {[%clk 0:01:55.4]} 23. Nxf7 {[%clk 0:02:07.8]} 23... Kxf7 {[%clk 0:01:33.8]}
24. Ng5+ {[%clk 0:02:07.7]} 24... Kg8 {[%clk 0:01:34.5]} 25. Nxe6 {[%clk
0:02:07.7]} 25... Nxe6 {[%clk 0:01:35.4]} 26. Bb2 {[%clk 0:02:04.5]} 26... Ng5
{[%clk 0:01:18.7]} 27. Bg2 {[%clk 0:02:03.3]} 27... Nf7 {[%clk 0:00:48.9]} 28.
Bd5 {[%clk 0:02:01.5]} 28... Kf8 {[%clk 0:00:48]} 29. Bxf7 {[%clk 0:02:00.4]}
29... Qxf7 {[%clk 0:00:42.6]} 30. Bxe5 {[%clk 0:01:59.7]} 30... Bxe5 {[%clk
0:00:43.5]} 31. Rxe5 {[%clk 0:01:58.5]} 31... Nxc4 {[%clk 0:00:44.4]} 32. dxc4
{[%clk 0:01:32.8]} 32... Rxd1+ {[%clk 0:00:42.8]} 33. Rxd1 {[%clk 0:01:33.3]}
33... Qxc4 {[%clk 0:00:32.7]} 34. Rd7 {[%clk 0:01:32]} 34... Qc1+ {[%clk
0:00:27.5]} 35. Kg2 {[%clk 0:01:29.6]} 35... Qxh6 {[%clk 0:00:26.3]} 36. Ree7
{[%clk 0:01:26.6]} 36... Qh5 {[%clk 0:00:15.4]} 37. Rxh7 {[%clk 0:01:24.9]} 1-0

[Event "*** Titled Tuesday Blitz"]
[Site "Chess.com"]
[Date "2021.04.06"]
[Round "6"]
[White "chess4life23"]
[Black "IngOscarArdila"]
[Result "1-0"]
[WhiteElo "2351"]
[BlackElo "2187"]
[TimeControl "180+1"]
[EndTime "11:06:54 PDT"]
[Termination "chess4life23 won by resignation"]

1. d4 {[%clk 0:03:00.9]} 1... Nf6 {[%clk 0:02:59.1]} 2. c4 {[%clk 0:02:57.2]}
2... g6 {[%clk 0:02:58.2]} 3. Nc3 {[%clk 0:02:56.9]} 3... Bg7 {[%clk 0:02:57.5]}
4. e4 {[%clk 0:02:57.3]} 4... d6 {[%clk 0:02:57.1]} 5. Be2 {[%clk 0:02:57.9]}
5... O-O {[%clk 0:02:56.7]} 6. Nf3 {[%clk 0:02:58.4]} 6... Nbd7 {[%clk
0:02:56.3]} 7. O-O {[%clk 0:02:53.8]} 7... e5 {[%clk 0:02:54.9]} 8. Re1 {[%clk
0:02:54.1]} 8... exd4 {[%clk 0:02:54.1]} 9. Nxd4 {[%clk 0:02:54.4]} 9... Nc5
{[%clk 0:02:53.8]} 10. Bf1 {[%clk 0:02:54.7]} 10... Re8 {[%clk 0:02:53.4]} 11.
f3 {[%clk 0:02:54.9]} 11... a5 {[%clk 0:02:51.4]} 12. Be3 {[%clk 0:02:54.1]}
12... Bd7 {[%clk 0:02:50.6]} 13. Rc1 {[%clk 0:02:52.5]} 13... Ne6 {[%clk
0:02:48.7]} 14. Nc2 {[%clk 0:02:44.5]} 14... h5 {[%clk 0:02:37.1]} 15. Qd2
{[%clk 0:02:41.2]} 15... Qe7 {[%clk 0:02:34.5]} 16. Nd5 {[%clk 0:02:36.4]} 16...
Qf8 {[%clk 0:02:32]} 17. Nd4 {[%clk 0:02:24.6]} 17... Kh7 {[%clk 0:02:07.5]} 18.
Nxe6 {[%clk 0:02:19.5]} 18... Bxe6 {[%clk 0:01:56.8]} 19. Nxc7 {[%clk
0:02:19.6]} 19... Rec8 {[%clk 0:01:53.9]} 20. Nxa8 {[%clk 0:02:19.3]} 20... Rxa8
{[%clk 0:01:52.9]} 21. Red1 {[%clk 0:02:18.3]} 21... Rc8 {[%clk 0:01:49.6]} 22.
Qxd6 {[%clk 0:02:15.1]} 22... Qe8 {[%clk 0:01:46.4]} 23. Qd2 {[%clk 0:02:12.1]}
23... h4 {[%clk 0:01:41.9]} 24. Qxa5 {[%clk 0:02:09.5]} 24... Nh5 {[%clk
0:01:39.3]} 25. Bd4 {[%clk 0:01:48.5]} 25... Bh6 {[%clk 0:01:36.9]} 26. Qe1
{[%clk 0:01:28.6]} 26... Qa4 {[%clk 0:01:35]} 27. Qxh4 {[%clk 0:01:22]} 27...
Qxa2 {[%clk 0:01:34.8]} 28. g4 {[%clk 0:01:18.1]} 28... Bxc1 {[%clk 0:01:22.3]}
29. Rxc1 {[%clk 0:01:13.6]} 29... Bxc4 {[%clk 0:01:13.8]} 30. gxh5 {[%clk
0:01:05]} 30... Qb3 {[%clk 0:00:54.4]} 31. hxg6+ {[%clk 0:01:03.7]} 31... Kxg6
{[%clk 0:00:54.4]} 32. Qf6+ {[%clk 0:00:52.7]} 32... Kh5 {[%clk 0:00:53.6]} 33.
Qf5+ {[%clk 0:00:53.1]} 33... Kh6 {[%clk 0:00:53.4]} 34. Qxc8 {[%clk 0:00:44.7]}
34... Qxf3 {[%clk 0:00:52.7]} 35. Qh3+ {[%clk 0:00:44]} 35... Qxh3 {[%clk
0:00:52.3]} 36. Bxh3 {[%clk 0:00:44.9]} 1-0

[Event "*** Titled Tuesday Blitz"]
[Site "Chess.com"]
[Date "2021.04.06"]
[Round "6"]
[White "schondeln"]
[Black "davidkalashian"]
[Result "0-1"]
[WhiteElo "2383"]
[BlackElo "2553"]
[TimeControl "180+1"]
[EndTime "11:06:56 PDT"]
[Termination "davidkalashian won by resignation"]

1. e4 {[%clk 0:03:00.9]} 1... c5 {[%clk 0:02:56.9]} 2. Nf3 {[%clk 0:03:00.6]}
2... d6 {[%clk 0:02:54.1]} 3. Bc4 {[%clk 0:03:00.4]} 3... Nf6 {[%clk 0:02:51.9]}
4. d3 {[%clk 0:03:00.3]} 4... e6 {[%clk 0:02:49.9]} 5. Bb3 {[%clk 0:03:00.1]}
5... Be7 {[%clk 0:02:49.3]} 6. O-O {[%clk 0:02:59]} 6... O-O {[%clk 0:02:48.4]}
7. Nbd2 {[%clk 0:02:55]} 7... Nc6 {[%clk 0:02:40.9]} 8. c3 {[%clk 0:02:54.6]}
8... b5 {[%clk 0:02:34.2]} 9. Re1 {[%clk 0:02:54.5]} 9... b4 {[%clk 0:02:27.8]}
10. d4 {[%clk 0:02:47]} 10... bxc3 {[%clk 0:02:20]} 11. bxc3 {[%clk 0:02:46.8]}
11... cxd4 {[%clk 0:02:17.7]} 12. cxd4 {[%clk 0:02:47.7]} 12... Nb4 {[%clk
0:02:08.5]} 13. Nc4 {[%clk 0:02:13.7]} 13... d5 {[%clk 0:01:47.7]} 14. exd5
{[%clk 0:02:13.6]} 14... Nbxd5 {[%clk 0:01:41.8]} 15. Nfe5 {[%clk 0:02:09.1]}
15... Bb7 {[%clk 0:01:39.9]} 16. Bg5 {[%clk 0:01:48.2]} 16... Rc8 {[%clk
0:01:36.5]} 17. Rc1 {[%clk 0:01:45.3]} 17... h6 {[%clk 0:01:30.1]} 18. Bh4
{[%clk 0:01:42.5]} 18... Nf4 {[%clk 0:01:25.8]} 19. f3 {[%clk 0:01:29.2]} 19...
N6d5 {[%clk 0:01:13.8]} 20. Bf2 {[%clk 0:01:25.5]} 20... Bb4 {[%clk 0:01:08.2]}
21. Rf1 {[%clk 0:01:21.6]} 21... Qg5 {[%clk 0:01:04.7]} 22. Bg3 {[%clk
0:01:20.2]} 22... h5 {[%clk 0:00:49.8]} 23. Rf2 {[%clk 0:00:58.9]} 23... h4
{[%clk 0:00:40.7]} 24. Bxf4 {[%clk 0:00:59.1]} 24... Nxf4 {[%clk 0:00:41.1]} 25.
Kh1 {[%clk 0:00:59.5]} 25... Rfd8 {[%clk 0:00:38.3]} 26. h3 {[%clk 0:00:47.8]}
26... Nh5 {[%clk 0:00:37.5]} 27. Qd3 {[%clk 0:00:40.5]} 27... Qxc1+ {[%clk
0:00:36]} 0-1